bitfinex/quotes_ETHUSD_20240612
["timestamp","ask_amount","ask_price","bid_price","bid_amount"]
[1718192724507,4.22377494,3540.8,3540.0,0.05648756]
[1718192725702,3.36277494,3540.8,3540.1,2.82475]
[1718192725901,3.36277494,3540.8,3540.2,0.05648553]
[1718192726129,3.36277494,3540.8,3540.3,0.0564855]
[1718192726334,0.88449273,3541.1,3540.3,2.8810355]
[1718192726628,3.0,3541.2,3540.5,2.8244]
[1718192726803,3.861,3541.2,3540.5,2.8244]
[1718192727389,3.0,3541.2,3540.6,0.05647794]
[1718192728500,3.0,3541.2,3540.7,2.82427]
[1718192728702,3.0,3541.5,3540.8,0.05647726]
[1718192729017,0.61277763,3541.5,3540.8,0.05647726]
[1718192729212,1.47377763,3541.5,3540.8,0.05647726]
[1718192730741,4.47377763,3541.5,3540.8,0.05647726]
[1718192732146,3.61277763,3541.5,3540.8,0.05647726]
[1718192732363,3.0,3541.5,3540.8,0.05647726]
[1718192733841,3.0,3541.5,3541.1,2.82393]
[1718192734066,3.0,3541.7,3541.1,2.82393]
[1718192734407,3.861,3541.7,3541.1,2.82393]
[1718192735505,3.0,3541.7,3541.1,2.82393]
[1718192735970,7.49,3541.8,3541.1,2.82393]
[1718192736267,7.49,3541.8,3541.2,0.05647004]
[1718192737168,7.49,3541.8,3541.3,0.05646961]
[1718192737468,0.861,3541.9,3541.3,0.05646961]
[1718192737784,3.0,3541.9,3541.3,0.05646961]
[1718192737950,2.82328,3542.0,3541.3,0.05646961]
[1718192738125,2.82328,3542.0,3541.3,2.88024961]
[1718192739061,7.49,3542.2,3541.5,3.68461]
[1718192739228,7.49,3542.2,3541.6,0.05646449]
[1718192741197,7.49,3542.2,3541.5,2.82361]
[1718192741198,1.25091221,3542.2,3541.4,2.8237]
[1718192741510,0.861,3541.7,3541.1,5.13373]
[1718192741669,0.861,3541.7,3541.1,2.82393]
[1718192742692,0.861,3541.5,3541.1,2.82393]
[1718192742892,0.861,3541.5,3540.8,5.23848]
[1718192743283,3.68454,3541.7,3540.8,5.23848]
[1718192743476,0.861,3541.5,3540.8,5.23848]
[1718192746170,3.6847,3541.5,3540.8,5.23848]
[1718192748012,3.6847,3541.5,3540.8,2.82418]
[1718192748217,2.82385,3541.3,3540.5,5.07892]
[1718192748405,2.82385,3541.3,3540.5,5.93992]
[1718192748606,3.68502,3541.1,3540.2,5.07916]
[1718192748808,3.68502,3541.1,3540.3,0.55]
[1718192749343,2.82417,3540.9,3540.2,2.2545]
[1718192749836,3.68517,3540.9,3540.2,2.2545]
[1718192750137,2.82434,3540.7,3539.9,6.1568]
[1718192750596,2.82434,3540.7,3540.0,0.55]
[1718192752935,2.82434,3540.7,3540.1,0.861]
[1718192753124,2.82434,3540.7,3540.0,0.55]
[1718192754547,2.82449,3540.5,3539.9,5.2958]
[1718192754701,2.82449,3540.5,3539.9,2.4709]
[1718192755028,2.82449,3540.5,3539.7,0.04887155]
[1718192756645,2.82449,3540.5,3539.8,0.861]
[1718192757143,2.82449,3540.5,3539.8,3.68597]
[1718192757345,2.82449,3540.5,3540.0,0.861]
[1718192757565,2.82449,3540.5,3540.1,0.05648907]
[1718192758724,2.82427,3540.8,3540.1,0.05648907]
[1718192758944,2.82427,3540.8,3540.2,3.2143]
[1718192759247,2.82427,3540.8,3540.3,0.05648476]
[1718192760460,2.82427,3540.8,3540.2,2.82468]
[1718192762244,2.82427,3540.8,3540.0,0.861]
[1718192763760,8.896139,3541.0,3540.0,0.861]
[1718192764070,2.82427,3540.8,3540.0,0.861]
[1718192764245,2.82427,3540.8,3540.1,2.82476]
[1718192764584,2.82427,3540.8,3540.2,0.91748483]
[1718192764733,7.49,3541.0,3540.4,3.2815]
[1718192764939,7.49,3541.0,3540.6,0.861]
[1718192765140,7.49,3541.0,3540.7,0.05647996]
[1718192765368,2.82395,3541.2,3540.7,0.05647996]
[1718192765882,19.77,3541.5,3540.8,0.9174786]
[1718192766438,19.77,3541.5,3540.8,0.0564786]
[1718192766697,20.631,3541.5,3540.8,0.0564786]
[1718192767266,2.82375,3541.4,3540.7,2.82424]
[1718192767468,2.82375,3541.4,3540.4,6.10599]
[1718192767665,2.82375,3541.4,3540.5,0.55]
[1718192767858,0.861,3541.3,3540.5,0.55]
[1718192768398,0.861,3541.3,3540.4,5.24499]
[1718192768707,3.6851,3541.0,3540.1,5.25234]
[1718192769002,3.68525,3540.8,3540.1,2.82474]
[1718192769208,2.3236,3541.1,3540.0,0.113085]
[1718192769209,3.68543,3540.6,3540.0,0.113085]
[1718192769718,2.82443,3540.6,3540.0,0.113085]
[1718192775451,2.82415,3540.9,3540.2,0.861]
[1718192775613,2.82415,3540.9,3540.4,0.861]
[1718192775943,2.82415,3540.9,3540.5,0.05648331]
[1718192776428,2.82415,3540.9,3540.4,0.91748331]
[1718192776602,2.82415,3540.9,3540.4,0.05648331]
[1718192777806,2.82415,3540.9,3540.2,0.861]
[1718192777807,2.82415,3540.9,3540.3,0.05648361]
[1718192782722,2.82415,3540.9,3540.2,0.861]
[1718192783235,2.82415,3540.9,3540.1,1.45988393]
[1718192783412,2.4338,3540.8,3540.1,0.59888393]
[1718192785445,2.8243,3540.7,3540.1,0.04888393]
[1718192786243,2.82449,3540.5,3540.1,0.04888393]
[1718192787710,0.70037827,3540.5,3540.1,0.04888393]
[1718192787914,0.70037827,3540.5,3540.0,0.113085]
[1718192787915,0.861,3540.2,3540.0,0.113085]
[1718192788109,0.861,3540.4,3540.0,0.113085]
[1718192789150,2.3005,3540.2,3540.0,0.113085]
[1718192790148,2.82477,3540.1,3540.0,0.113085]
[1718192796831,0.88449273,3540.5,3540.0,0.113085]
[1718192797023,3.88449273,3540.5,3540.0,0.113085]
[1718192797223,3.0,3540.5,3540.0,0.113085]
[1718192797532,2.82457,3540.4,3540.0,0.113085]
[1718192797861,2.82469,3540.2,3540.0,0.113085]
[1718192801552,3.68569,3540.2,3540.0,0.113085]
[1718192804567,2.82469,3540.2,3540.0,0.113085]
[1718192807582,0.861,3540.4,3540.0,0.113085]
[1718192808880,3.0,3540.5,3540.0,0.113085]
[1718192810082,2.82454,3540.4,3540.0,0.113085]
[1718192814115,3.68554,3540.4,3540.0,0.113085]
[1718192814977,2.82473,3540.2,3540.0,0.113085]
[1718192818571,3.68573,3540.2,3540.0,0.113085]
[1718192821205,2.82473,3540.2,3540.0,0.113085]
[1718192826045,0.861,3540.4,3540.0,0.113085]
[1718192826194,3.88449273,3540.5,3540.0,0.113085]
[1718192826533,3.0,3540.5,3540.1,2.3069]
[1718192826735,3.0,3540.5,3540.1,2.3633892]
[1718192826895,3.0,3540.5,3540.1,2.3069]
[1718192830407,4.56994273,3540.6,3540.1,2.3069]
[1718192830937,3.68545,3540.6,3540.1,2.3069]
[1718192832542,0.88449273,3540.7,3540.2,0.05648945]
[1718192832729,4.00351364,3540.9,3540.1,5.13166]
[1718192832730,0.88449273,3540.8,3540.3,0.05648544]
[1718192833239,3.70868273,3540.9,3540.4,2.2986]
[1718192833636,0.88449273,3540.9,3540.5,0.05648463]
[1718192833997,0.88449273,3540.9,3540.5,2.82443]
[1718192834537,7.49,3541.0,3540.5,2.82443]
[1718192834722,1.74549273,3541.1,3540.5,2.82443]
[1718192835037,4.74549273,3541.1,3540.5,2.82443]
[1718192835208,3.861,3541.1,3540.5,2.82443]
[1718192835401,3.88449273,3541.1,3540.5,2.82443]
[1718192835733,4.74549273,3541.1,3540.5,2.82443]
[1718192836036,3.0,3541.1,3540.5,2.82443]
[1718192836538,3.861,3541.1,3540.5,2.82443]
[1718192839402,3.861,3541.1,3540.4,2.2986]
[1718192839403,0.861,3540.9,3540.4,2.2986]
[1718192841337,2.82409,3541.0,3540.4,2.2986]
[1718192847457,0.861,3540.5,3540.0,0.113085]
[1718192847751,3.0,3541.1,3540.0,0.16202472]
[1718192847752,0.861,3540.1,3540.0,0.16202472]
[1718192849553,2.82472,3540.2,3540.0,0.16202472]
[1718192855342,0.88449273,3540.6,3540.0,0.21851967]
[1718192855548,7.49,3540.7,3540.1,2.3611]
[1718192855754,7.49,3540.7,3540.2,0.0564873]
[1718192856135,7.49,3540.7,3540.3,0.05648693]
[1718192857339,2.82424,3540.8,3540.3,0.05648693]
[1718192858446,2.82424,3540.8,3540.1,5.18584]
[1718192858656,2.82424,3540.8,3540.2,0.55]
[1718192859762,0.861,3540.7,3540.2,0.55]
[1718192860485,2.82424,3540.8,3540.2,0.55]
[1718192860632,2.82424,3540.8,3540.3,0.05648515]
[1718192861375,2.82424,3540.8,3540.2,0.55]
[1718192863305,2.82424,3540.8,3540.3,0.05648522]
[1718192866907,2.82424,3540.8,3540.2,0.55]
[1718192867873,2.82424,3540.8,3540.3,0.0564854]
[1718192869448,0.861,3540.9,3540.3,2.82461]
[1718192870063,2.82403,3541.1,3540.3,2.82461]
[1718192870353,0.861,3540.9,3540.3,2.82461]
[1718192872739,0.861,3540.9,3540.4,2.4809]
[1718192873754,8.37449273,3541.2,3540.6,2.303]
[1718192873923,7.49,3541.2,3540.6,2.303]
[1718192874436,7.49,3541.2,3540.7,2.88077035]
[1718192874623,8.351,3541.2,3540.7,2.88077035]
[1718192874959,0.861,3541.2,3540.7,2.88077035]
[1718192875783,0.861,3541.2,3540.8,2.4988]
[1718192875932,0.861,3541.3,3540.8,2.4988]
[1718192883052,2.8239,3541.2,3540.8,2.4988]
[1718192884077,0.861,3541.1,3540.7,2.82429]
[1718192884274,0.861,3541.1,3540.6,2.4581]
[1718192885269,2.82409,3541.0,3540.3,2.2633]
[1718192885477,0.861,3541.1,3540.3,2.2633]
[1718192885478,2.8244,3540.6,3540.3,2.2633]
[1718192885676,2.8244,3540.6,3540.1,2.87368718]
[1718192885677,2.8244,3540.6,3540.1,5.13698718]
[1718192892291,2.8244,3540.6,3540.1,0.04896718]
[1718192892292,0.861,3540.5,3540.1,0.04896718]
[1718192892586,2.8244,3540.6,3540.1,0.04896718]
[1718192897304,2.8246,3540.4,3540.1,0.04896718]
[1718192908739,3.70883273,3540.7,3540.1,2.34656718]
[1718192909048,2.82434,3540.7,3540.2,0.0564883]
[1718192909943,2.82434,3540.7,3540.1,2.34656718]
[1718192910141,2.82434,3540.7,3540.1,5.17129718]
[1718192915189,8.37449273,3540.9,3540.3,2.2648]
[1718192915389,7.49,3540.9,3540.4,0.55]
[1718192915905,2.82407,3541.0,3540.4,0.55]
[1718192916208,3.68507,3541.0,3540.5,2.82444]
[1718192916372,4.56956273,3541.0,3540.5,2.82444]
[1718192916880,3.68507,3541.0,3540.5,2.82444]
[1718192919222,3.68507,3541.0,3540.1,2.82477]
[1718192919223,2.82428,3540.8,3540.1,2.82477]
[1718192919612,0.861,3540.7,3540.1,2.82477]
[1718192919999,0.861,3540.5,3540.1,2.82477]
[1718192920197,0.861,3540.3,3540.0,0.113085]
[1718192924144,0.86017088,3540.3,3540.0,0.113085]
[1718192925338,2.82457,3540.4,3540.0,0.113085]
[1718192931167,3.70906273,3540.4,3540.0,0.113085]
[1718192935242,3.70906273,3540.4,3540.1,2.3259]
[1718192935441,2.82457,3540.4,3540.1,2.3259]
[1718192940209,2.82438,3540.6,3540.1,2.3259]
[1718192940405,3.68538,3540.6,3540.1,2.3259]
[1718192940779,7.49,3540.8,3540.2,0.05648756]
[1718192941114,8.351,3540.8,3540.1,5.15063]
[1718192941334,0.861,3540.6,3540.2,0.55]
[1718192942604,0.861,3540.6,3540.1,5.15063]
[1718192942783,0.861,3540.6,3540.0,0.113085]
[1718192944201,2.82446,3540.5,3540.0,0.113085]
[1718192949239,3.71279002,3540.5,3540.0,0.113085]
[1718192951926,2.82461,3540.3,3540.0,0.113085]
[1718192962740,2.82476,3540.2,3540.0,0.113085]
[1718192964482,3.71309002,3540.2,3540.0,0.113085]
[1718192964679,4.57409002,3540.2,3540.0,0.113085]
[1718192966879,0.88833002,3540.1,3540.0,0.113085]
[1718192967374,4.57409002,3540.2,3540.0,0.113085]
[1718192967963,5.80826746,3540.2,3540.0,0.113085]
[1718192969481,4.57409002,3540.2,3540.0,0.113085]
[1718192969839,3.71309002,3540.2,3540.0,0.113085]
[1718192970377,2.82476,3540.2,3540.0,0.113085]
[1718192987584,5.21746,3540.2,3540.0,0.113085]
[1718192987968,6.10579002,3540.2,3540.0,0.113085]
[1718192989111,0.861,3540.1,3540.0,0.113085]
[1718192989475,1.74933002,3540.1,3540.0,0.113085]
[1718192991515,0.861,3540.1,3540.0,0.113085]
[1718192991673,2.04544003,3540.1,3540.0,0.113085]
[1718192991879,0.861,3540.1,3540.0,0.113085]
[1718192992106,2.11413918,3540.1,3540.0,0.113085]
[1718192992488,3.00274198,3540.1,3540.0,0.113085]
[1718192995613,2.11413918,3540.1,3540.0,0.113085]
[1718192996485,3.29857921,3540.1,3540.0,0.113085]
[1718192997314,2.11413918,3540.1,3540.0,0.113085]
[1718193001108,3.29857921,3540.1,3540.0,0.113085]
[1718193001722,7.55783918,3540.1,3540.0,0.113085]
[1718193002588,8.99128432,3540.1,3540.0,0.113085]
[1718193004030,10.76852869,3540.1,3540.0,0.113085]
[1718193005422,8.99128432,3540.1,3540.0,0.113085]
[1718193009445,10.46904473,3540.1,3540.0,0.113085]
[1718193009941,8.99128432,3540.1,3540.0,0.113085]
[1718193013242,8.99128432,3540.1,3539.0,1.78154959]
[1718193013243,2.3873,3539.7,3539.0,1.78154959]
[1718193013408,3.68657,3539.1,3539.0,1.78154959]
[1718193014110,6.51214,3539.1,3539.0,1.78154959]
[1718193014443,10.43918514,3539.1,3539.0,1.78154959]
[1718193014609,13.43918514,3539.1,3539.0,1.78154959]
[1718193014809,15.87616274,3539.1,3539.0,1.78154959]
[1718193015045,14.98989862,3539.1,3539.0,1.78154959]
[1718193015575,15.8753733,3539.1,3539.0,1.78154959]
[1718193017526,18.7009433,3539.1,3539.0,1.78154959]
[1718193018035,17.81546862,3539.1,3539.0,1.78154959]
[1718193020352,17.81546862,3539.1,3539.0,1.12902915]
[1718193021668,18.6994161,3539.1,3539.0,1.12902915]
[1718193021957,17.81546862,3539.1,3539.0,1.12902915]
[1718193022419,18.6992213,3539.1,3539.0,1.12902915]
[1718193023430,18.6992213,3539.1,3537.9,2.4293858]
[1718193023431,2.82645,3538.0,3537.9,2.4293858]
[1718193023631,2.82645,3538.0,3537.4,2.2963]
[1718193023632,2.82684,3537.6,3537.4,2.2963]
[1718193023870,2.82684,3537.6,3537.4,2.34544606]
[1718193027227,0.861,3537.5,3537.4,2.34544606]
[1718193027761,2.82684,3537.6,3537.4,2.34544606]
[1718193028344,0.861,3537.5,3537.4,2.34544606]
[1718193029192,2.82693,3537.4,3537.3,2.08615346]
[1718193030629,3.68793,3537.4,3537.3,2.08615346]
[1718193031391,6.51486,3537.4,3537.3,2.08615346]
[1718193031589,7.44903,3537.4,3537.3,2.08615346]
[1718193031744,17.17330514,3537.4,3537.3,2.08615346]
[1718193032072,17.17330514,3537.4,3537.3,1.24143097]
[1718193032280,17.17330514,3537.4,3537.3,1.13383097]
[1718193032767,17.17330514,3537.4,3537.2,0.1211931]
[1718193032971,2.82789,3536.2,3536.1,2.3475]
[1718193034031,0.861,3536.5,3536.1,2.3475]
[1718193034032,2.8277,3536.5,3536.1,2.3475]
[1718193034879,3.6887,3536.5,3536.1,2.3475]
[1718193035551,2.8277,3536.5,3536.1,2.3475]
[1718193037374,11.17843,3536.8,3536.1,2.3475]
[1718193038709,2.82762,3536.6,3536.1,2.3475]
[1718193039253,3.68862,3536.6,3536.1,2.3475]
[1718193040293,2.82762,3536.6,3536.1,2.3475]
[1718193044531,2.82797,3536.1,3536.0,0.04916546]
[1718193044797,3.0,3536.9,3536.0,2.37726546]
[1718193044957,3.0,3537.2,3536.3,2.393]
[1718193045162,0.861,3537.1,3536.3,2.393]
[1718193045357,7.49,3538.1,3537.0,2.393]
[1718193045559,2.82615,3538.4,3536.4,2.393]
[1718193045560,2.82725,3537.0,3536.4,2.393]
[1718193046261,3.68825,3537.0,3536.4,2.393]
[1718193046998,2.82725,3537.0,3536.4,2.393]
[1718193047768,7.49,3537.4,3536.6,2.4713]
[1718193047992,7.49,3537.4,3536.7,0.55]
[1718193048174,7.49,3537.4,3536.8,2.82735]
[1718193050695,3.0671606,3537.5,3536.9,2.2754]
[1718193053910,0.861,3537.4,3536.9,2.2754]
[1718193054343,2.82719,3537.1,3536.9,2.2754]
[1718193054645,2.82735,3536.9,3536.6,2.4749]
[1718193055342,2.82735,3536.9,3536.4,0.04915262]
[1718193061571,3.68814,3537.2,3536.4,0.04915262]
[1718193061779,7.49,3537.3,3536.7,2.82745]
[1718193062077,14.7396,3537.9,3537.0,2.8272]
[1718193062078,11.17767,3537.8,3537.0,2.8272]
[1718193062393,7.49,3538.1,3537.3,2.82699]
[1718193062691,0.861,3537.8,3537.3,2.82699]
[1718193063173,2.82686,3537.5,3537.0,2.82721]
[1718193064002,0.861,3537.6,3536.9,2.4727]
[1718193064003,2.82701,3537.3,3536.9,2.4727]
[1718193064705,3.68783,3537.6,3536.9,5.30002]
[1718193064891,2.82659,3537.9,3537.1,2.82715]
[1718193065267,0.861,3537.7,3537.1,2.82715]
[1718193067463,0.861,3537.7,3537.2,2.325]
[1718193067663,0.861,3537.7,3537.3,2.82695]
[1718193067868,0.861,3537.7,3537.2,2.325]
[1718193067869,3.68771,3537.7,3537.2,2.325]
[1718193068608,3.68787,3537.5,3537.0,2.82718]
[1718193069330,3.68787,3537.5,3536.9,2.325]
[1718193070131,3.68787,3537.5,3536.9,5.15231]
[1718193070132,2.82687,3537.5,3536.9,5.15231]
[1718193070628,3.68765,3537.8,3537.1,2.82716]
[1718193070833,3.0,3537.7,3537.1,2.82716]
[1718193071127,10.3164,3538.1,3537.3,2.82698]
[1718193071359,3.0,3538.0,3537.4,2.4907]
[1718193071488,3.861,3538.0,3537.4,2.4907]
[1718193072490,3.861,3538.0,3537.5,2.82685]
[1718193073140,7.49,3538.1,3537.7,2.82666]
[1718193077234,0.861,3538.2,3537.7,2.82666]
[1718193077536,0.368717,3538.1,3537.4,5.31759]
[1718193077693,0.861,3538.0,3537.4,5.31759]
[1718193085254,3.68746,3538.0,3537.4,5.31759]
[1718193085402,0.861,3537.8,3537.2,2.3187]
[1718193085601,4.3211677,3537.8,3537.1,2.8271]
[1718193085798,0.368717,3538.1,3537.6,2.3766]
[1718193086100,1.229717,3538.1,3537.6,2.3766]
[1718193087351,4.229717,3538.1,3537.6,2.3766]
[1718193087563,3.0,3538.1,3537.6,2.3766]
[1718193087853,7.49,3538.4,3537.7,2.82668]
[1718193088752,5.96623,3538.5,3537.7,2.82668]
[1718193088753,2.82621,3538.3,3537.7,2.82668]
[1718193093624,3.68721,3538.3,3537.7,2.82668]
[1718193094484,2.82638,3538.1,3537.6,2.3766]
[1718193096301,2.82638,3538.1,3537.6,5.20336]
[1718193099156,5.22971,3538.4,3537.6,5.20336]
[1718193099498,6.09071,3538.4,3537.6,5.20336]
[1718193100400,5.22971,3538.4,3537.8,2.82658]
[1718193100695,2.82621,3538.4,3537.9,2.2547]
[1718193101821,3.68721,3538.4,3537.9,2.2547]
[1718193102642,4.0940356,3538.4,3537.9,2.2547]
[1718193102775,0.861,3538.2,3537.6,2.2722]
[1718193102977,0.861,3538.0,3537.3,2.2722]
[1718193104078,3.68746,3538.0,3537.3,2.2722]
[1718193105111,2.82646,3538.0,3537.3,2.2722]
[1718193105408,2.82646,3538.0,3537.4,2.82693]
[1718193108818,0.861,3538.2,3537.5,2.2902]
[1718193108979,0.8835601,3538.5,3538.1,2.82637]
[1718193109188,3.8835601,3538.6,3538.1,2.82637]
[1718193109495,3.0,3538.6,3538.1,2.82637]
[1718193110782,3.0,3538.7,3538.1,2.82637]
[1718193113529,3.861,3538.7,3538.1,2.82637]
[1718193114826,3.861,3538.7,3537.8,0.861]
[1718193115002,3.861,3538.7,3537.9,0.55]
[1718193115003,2.82597,3538.6,3537.9,0.55]
[1718193115515,2.82597,3538.6,3537.8,2.82654]
[1718193119506,2.4467,3538.5,3537.8,2.82654]
[1718193121148,2.82618,3538.4,3537.8,2.82654]
[1718193121306,3.3953149,3538.4,3537.8,2.82654]
[1718193122544,2.82629,3538.2,3537.6,3.46835576]
[1718193123126,2.82629,3538.2,3537.6,2.87588409]
[1718193123726,2.82647,3538.0,3537.6,0.04911409]
[1718193123933,2.82647,3538.0,3537.3,2.82695]
[1718193123934,2.715847,3537.9,3537.3,2.82695]
[1718193124287,2.4332,3537.9,3537.3,2.82695]
[1718193125424,2.82667,3537.8,3537.3,2.82695]
[1718193125743,2.82667,3537.8,3537.2,1.45347167]
[1718193126044,2.82667,3537.8,3537.3,0.55]
[1718193127546,2.4332,3537.9,3537.3,0.55]
[1718193127761,2.82678,3537.6,3537.3,0.55]
[1718193129812,5.25977,3537.9,3537.3,0.55]
[1718193135254,2.82657,3537.9,3537.3,0.55]
[1718193137335,2.82657,3537.9,3537.3,3.37693]
[1718193140856,1.1816855,3538.5,3537.3,3.37693]
[1718193140857,1.77615489,3538.9,3537.3,2.82693]
[1718193141030,2.82663,3537.8,3537.3,2.82693]
[1718193143359,0.861,3538.0,3537.3,2.82693]
[1718193143698,0.88796769,3538.3,3537.5,2.4839]
[1718193143959,0.861,3538.4,3537.7,2.82668]
[1718193143960,5.82621,3538.4,3537.7,2.82668]
[1718193144766,2.82621,3538.4,3537.9,2.82652]
[1718193144958,3.71391769,3538.7,3537.8,3.2128]
[1718193145271,2.82595,3538.7,3538.0,2.82637]
[1718193145421,3.68695,3538.7,3538.0,2.82637]
[1718193145624,3.17206769,3538.9,3538.2,2.82625]
[1718193145625,1.74896769,3538.9,3538.2,2.82625]
[1718193145849,0.861,3538.9,3538.2,2.82625]
[1718193147640,5.82571,3539.0,3538.2,2.82625]
[1718193147965,3.21316769,3539.2,3538.4,5.16002]
[1718193148137,0.861,3539.1,3538.4,5.16002]
[1718193153599,3.6866,3539.1,3538.4,5.16002]
[1718193154106,0.861,3538.9,3538.4,5.16002]
[1718193154602,1.46218,3538.9,3538.4,2.82612]
[1718193154770,0.861,3538.9,3538.4,2.82612]
[1718193156689,0.861,3538.7,3538.1,5.17977]
[1718193157197,3.68691,3538.7,3538.1,2.3534]
[1718193157363,3.68707,3538.5,3537.8,5.17995]
[1718193159457,3.68723,3538.3,3537.5,12.69084]
[1718193160290,3.68723,3538.3,3537.6,0.05652956]
[1718193160488,2.82623,3538.3,3537.6,0.05652956]
[1718193160696,2.82623,3538.3,3537.5,13.55184]
[1718193161206,3.68723,3538.3,3537.5,12.69084]
[1718193161980,3.68723,3538.3,3537.5,5.20084]
[1718193162592,3.68723,3538.3,3537.5,5.92127117]
[1718193163466,2.82623,3538.3,3537.7,0.861]
[1718193164333,2.82603,3538.6,3537.8,0.0565295]
[1718193164472,3.68703,3538.6,3537.8,0.0565295]
[1718193168889,3.68703,3538.6,3537.9,2.82652]
[1718193169090,3.68703,3538.6,3538.0,2.4063]
[1718193173214,2.82603,3538.6,3538.0,2.4063]
[1718193173722,0.861,3538.7,3538.1,2.82631]
[1718193179824,3.0,3538.8,3538.4,2.82613]
[1718193180032,0.88796769,3539.0,3538.4,6.28113]
[1718193180393,0.861,3538.9,3538.4,6.28113]
[1718193181599,3.861,3538.9,3538.4,6.28113]
[1718193182591,2.82573,3539.0,3538.4,6.909243]
[1718193185739,0.861,3538.9,3538.4,6.28113]
[1718193187038,3.68681,3538.9,3538.4,3.455]
[1718193189464,2.82556,3539.2,3538.6,3.2657]
[1718193191429,2.82556,3539.2,3538.7,2.82588]
[1718193191614,2.82556,3539.2,3538.7,3.58038517]
[1718193192217,3.68634,3539.4,3538.7,3.58038517]
[1718193192659,0.861,3539.2,3538.7,3.58038517]
[1718193193151,0.88796769,3539.6,3539.0,3.1498]
[1718193193348,0.861,3539.5,3539.0,3.62633052]
[1718193193547,0.861,3539.5,3539.1,2.82557]
[1718193194216,6.71298769,3539.8,3539.0,3.62633052]
[1718193194217,0.861,3539.3,3539.0,3.1498]
[1718193195666,0.861,3539.3,3538.8,2.82578]
[1718193195878,0.861,3539.3,3538.8,3.425538]
[1718193196541,0.861,3539.3,3538.8,0.599758]
[1718193196885,0.861,3539.3,3538.7,3.1718]
[1718193197229,3.9874,3539.3,3538.5,6.2028]
[1718193197425,3.9874,3539.3,3538.6,0.55]
[1718193198669,2.8256,3539.1,3538.5,3.3768]
[1718193205676,3.6866,3539.1,3538.5,3.3768]
[1718193207252,2.82574,3538.9,3538.5,0.620303]
[1718193207449,0.861,3538.9,3538.0,0.59247167]
[1718193207652,0.861,3538.9,3538.1,0.55]
[1718193207653,3.1254,3538.8,3538.1,0.55]
[1718193207977,2.82608,3538.5,3537.9,3.4424]
[1718193208174,2.82608,3538.5,3538.0,0.49727128]
[1718193217397,3.1457,3538.2,3537.9,0.04913076]
[1718193218662,2.82637,3538.1,3537.9,0.04913076]
[1718193224370,3.68737,3538.1,3537.9,0.04913076]
[1718193228177,6.51375,3538.1,3537.9,0.04913076]
[1718193230242,6.51375,3538.1,3537.1,7.49]
[1718193230243,2.82701,3537.4,3537.1,7.49]
[1718193230533,2.82701,3537.4,3537.3,0.04913444]
[1718193231809,2.82717,3537.2,3537.0,3.314]
[1718193233731,2.82717,3537.2,3536.7,3.2407]
[1718193234042,2.82725,3537.1,3536.8,0.55]
[1718193234243,2.82725,3537.1,3536.9,0.37907]
[1718193234949,2.82725,3537.1,3536.9,0.42819778]
[1718193240460,2.82701,3537.3,3536.9,0.42819778]
[1718193246092,2.82701,3537.3,3536.9,0.48473807]
[1718193246287,2.82686,3537.5,3537.0,4.0024]
[1718193246597,2.82686,3537.5,3537.1,0.92907683]
[1718193248795,3.68769,3537.8,3537.1,0.92907683]
[1718193249795,3.68769,3537.8,3537.1,0.87253981]
[1718193250157,3.68769,3537.8,3537.2,0.0565362]
[1718193250372,3.68769,3537.8,3537.1,0.92907601]
[1718193250608,3.68769,3537.8,3537.2,0.51681965]
[1718193250758,3.68769,3537.8,3537.3,0.05653623]
[1718193250956,3.3458,3538.1,3537.4,3.9793]
[1718193250957,6.17224,3538.1,3537.4,3.9793]
[1718193251172,3.0,3538.0,3537.4,3.9793]
[1718193251373,3.861,3538.0,3537.4,3.9793]
[1718193251569,6.68753,3538.0,3537.4,3.9793]
[1718193252403,5.82653,3538.0,3537.4,3.9793]
[1718193252716,6.68753,3538.0,3537.4,3.9793]
[1718193254102,2.82653,3538.0,3537.4,1.28230596]
[1718193254278,2.82653,3538.0,3537.5,3.1679]
[1718193255510,3.3846,3538.7,3537.8,2.82656]
[1718193255680,3.0,3538.6,3537.9,3.42772645]
[1718193256214,0.861,3538.6,3537.9,3.42772645]
[1718193256391,0.861,3538.6,3537.9,4.08477995]
[1718193257005,3.687,3538.6,3537.9,4.08477995]
[1718193257187,3.0,3538.5,3537.9,4.08477995]
[1718193258002,3.0,3538.5,3537.9,4.0282535]
[1718193258322,7.09583,3538.4,3537.6,3.171]
[1718193258608,7.09583,3538.4,3537.7,0.55]
[1718193258815,3.68732,3538.2,3537.6,3.171]
[1718193265724,2.82646,3538.0,3537.3,3.2409]
[1718193265888,2.82646,3538.0,3537.4,0.55]
[1718193266086,2.82646,3538.0,3537.5,0.80714317]
[1718193266587,2.82665,3537.8,3537.5,0.80714317]
[1718193267424,2.82665,3537.8,3537.4,0.55]
[1718193268620,2.82677,3537.7,3537.3,3.2409]
[1718193269829,2.82677,3537.7,3537.3,4.1019]
[1718193270032,2.82652,3538.0,3537.4,0.60653422]
[1718193272938,2.82652,3538.0,3537.4,0.55]
[1718193273232,2.82652,3538.0,3537.4,1.45092147]
[1718193275642,2.8266,3537.9,3537.4,1.45092147]
[1718193278345,9.0581,3538.5,3537.3,3.2409]
[1718193278346,2.8267,3537.7,3537.3,3.2409]
[1718193278552,4.1277,3538.0,3537.2,0.04913924]
[1718193278848,2.8268,3537.6,3537.2,0.04913924]
[1718193279853,2.8266,3537.9,3537.3,3.17993524]